bitfinex/quotes_SOLUSD_20240813
["timestamp","ask_amount","ask_price","bid_price","bid_amount"]
[1723530448522,12.81,144.97,144.96,0.12549]
[1723530448743,12.81,144.97,144.96,7.02389]
[1723530448936,12.81,144.99,144.98,6.8974]
[1723530449127,12.81,144.99,144.98,7.02289]
[1723530449327,12.81,144.99,144.98,0.12549]
[1723530449758,12.81,144.99,144.97,0.25098]
[1723530451154,12.81,144.99,144.97,0.12549]
[1723530451379,12.81,144.99,144.95,24.1454]
[1723530451534,12.81,144.97,144.96,0.12549]
[1723530451928,12.81,144.97,144.88,15.6291]
[1723530452236,12.81,144.97,144.92,17.2504]
[1723530452237,12.81,144.95,144.92,17.2504]
[1723530452440,12.81,144.93,144.92,17.2504]
[1723530452629,12.81,144.93,144.92,24.1507]
[1723530453823,6.8975,144.98,144.92,17.2504]
[1723530454043,32.05,144.96,144.93,6.8997]
[1723530455158,32.05,144.96,144.92,17.37589]
[1723530455159,1.65626005,144.95,144.92,0.12549]
[1723530455406,32.05,144.94,144.9,6.9012]
[1723530456227,32.05,144.94,144.89,17.2539]
[1723530456427,32.05,144.94,144.92,6.9002]
[1723530458058,32.05,144.96,144.93,6.8998]
[1723530458848,32.05,144.96,144.92,6.9002]
[1723530459038,32.05,144.96,144.93,0.12549]
[1723530459243,32.05,144.98,144.95,6.8988]
[1723530459436,32.05,144.98,144.96,0.12549]
[1723530460045,40.60376005,144.98,144.96,0.12549]
[1723530460656,40.60376005,144.98,144.95,0.12549]
[1723530460858,33.70626005,144.98,144.95,0.12549]
[1723530461257,32.05,144.98,144.95,0.12549]
[1723530461569,33.70626005,144.98,144.95,0.12549]
[1723530462057,32.05,144.98,144.95,0.12549]
[1723530462249,32.05,144.98,144.95,7.02429]
[1723530463262,32.05,144.98,144.95,0.12549]
[1723530463842,33.70626005,144.98,144.95,0.12549]
[1723530465461,32.05,144.98,144.95,0.12549]
[1723530465664,32.05,144.98,144.95,7.14958]
[1723530466546,32.05,144.98,144.95,0.25098]
[1723530466746,33.70626005,144.98,144.95,0.25098]
[1723530466961,32.05,144.98,144.95,0.25098]
[1723530467841,32.05,144.98,144.95,7.14978]
[1723530468161,32.05,145.02,144.97,0.12549]
[1723530468463,32.05,145.02,144.98,6.8974]
[1723530468638,32.05,145.02,144.99,0.12549]
[1723530469370,32.05,145.0,144.99,0.12549]
[1723530473776,32.05,145.0,144.91,22.9871]
[1723530473997,32.05,144.98,144.95,6.8988]
[1723530474150,32.05,144.98,144.94,24.1471]
[1723530474676,1.65626005,144.97,144.94,17.2478]
[1723530474886,32.05,144.98,144.94,24.147]
[1723530475185,32.05,144.98,144.95,6.8988]
[1723530475777,32.05,145.0,144.97,6.8979]
[1723530476089,12.81,144.98,144.97,6.8979]
[1723530476288,12.81,144.98,144.97,24.26829]
[1723530476653,12.81,144.98,144.97,0.12549]
[1723530476856,12.81,144.98,144.94,7.02459]
[1723530477078,12.81,144.96,144.95,0.12549]
[1723530478852,12.81,144.96,144.95,7.02439]
[1723530479262,12.81,144.98,144.95,0.25098]
[1723530479571,12.81,144.98,144.97,6.8979]
[1723530479774,12.81,144.98,144.97,7.02339]
[1723530480357,12.81,144.98,144.97,7.14888]
[1723530480671,12.81,144.98,144.97,7.27437]
[1723530480877,12.81,144.98,144.97,7.14888]
[1723530481059,12.81,144.98,144.97,0.12549]
[1723530481254,12.81,144.98,144.94,6.899]
[1723530481457,12.81,144.96,144.95,6.8989]
[1723530482553,12.81,144.96,144.94,24.1467]
[1723530482789,12.81,144.96,144.95,0.12549]
[1723530483769,12.81,144.96,144.95,7.02439]
[1723530484372,12.81,144.96,144.95,0.12549]
[1723530485496,12.81,144.98,144.95,0.37647]
[1723530485655,12.81,145.0,144.96,17.37059]
[1723530485859,12.81,145.0,144.97,0.25098]
[1723530486090,12.81,145.0,144.99,6.897]
[1723530486263,12.81,145.0,144.98,6.8974]
[1723530486467,12.81,145.01,144.99,0.12549]
[1723530486768,12.81,145.01,144.99,17.36799]
[1723530486964,1.65626005,145.0,144.99,0.12549]
[1723530487283,1.65626005,145.0,144.98,0.12549]
[1723530487596,12.81,144.98,144.96,24.1439]
[1723530487797,12.81,144.98,144.97,6.8979]
[1723530487984,12.81,144.98,144.97,7.02339]
[1723530488766,66.4302,145.04,144.98,6.8974]
[1723530488984,12.81,145.0,144.99,0.12549]
[1723530489162,12.81,145.0,144.96,24.144]
[1723530489491,12.81,144.98,144.96,17.2456]
[1723530490078,19.7076,144.98,144.95,0.12549]
[1723530490302,12.81,144.96,144.95,0.12549]
[1723530490467,12.81,144.96,144.94,0.12549]
[1723530490867,1.65626005,144.95,144.93,17.2491]
[1723530491106,12.81,144.94,144.93,17.2491]
[1723530491390,12.81,144.94,144.93,24.1489]
[1723530492187,12.81,144.94,144.93,24.27439]
[1723530492673,12.81,144.96,144.94,0.12549]
[1723530492991,12.81,144.96,144.95,6.8989]
[1723530493185,12.81,144.96,144.95,7.14988]
[1723530494795,12.81,144.96,144.95,0.12549]
[1723530495100,12.81,144.96,144.93,17.2491]
[1723530495292,12.81,144.96,144.94,0.12549]
[1723530495682,12.81,144.96,144.93,24.1486]
[1723530495865,12.81,144.94,144.93,24.1486]
[1723530496202,12.81,144.96,144.93,24.1486]
[1723530496372,12.81,144.96,144.94,6.8992]
[1723530497087,12.81,144.96,144.93,24.27429]
[1723530497274,12.81,144.96,144.94,0.12549]
[1723530497470,12.81,144.96,144.94,7.15028]
[1723530497688,12.81,144.96,144.95,6.8989]
[1723530497998,12.81,144.98,144.95,17.49748]
[1723530498209,12.81,144.98,144.97,6.8979]
[1723530498379,12.81,144.98,144.97,7.02339]
[1723530498577,6.8951,145.03,144.97,17.36939]
[1723530498898,66.4302,145.04,144.99,6.897]
[1723530498899,12.81,145.0,144.99,6.897]
[1723530499195,12.81,145.0,144.98,6.8974]
[1723530499707,12.81,145.0,144.97,17.36939]
[1723530499994,12.81,145.0,144.98,0.12549]
[1723530501073,1.65626005,144.99,144.95,7.02439]
[1723530501288,14.46626005,144.98,144.96,0.25098]
[1723530501899,14.46626005,144.98,144.96,0.12549]
[1723530502093,14.46626005,144.98,144.95,6.8989]
[1723530502296,6.8966,145.0,144.95,6.8989]
[1723530502297,12.81,144.96,144.95,6.8989]
[1723530503401,12.81,144.96,144.95,7.02439]
[1723530504705,12.81,144.98,144.97,6.8976]
[1723530504870,12.81,144.98,144.97,7.14858]
[1723530506909,12.81,145.0,144.98,17.243]
[1723530507407,12.81,145.0,144.99,7.02249]
[1723530508298,73.3248,145.04,145.0,17.2404]
[1723530508299,12.81,145.03,145.0,17.2404]
[1723530508504,12.81,145.03,145.01,0.12549]
[1723530508710,12.81,145.03,145.01,7.02149]
[1723530509485,12.81,145.03,145.02,6.8956]
[1723530509694,12.81,145.03,145.02,7.14658]
[1723530511389,12.81,145.05,145.04,6.8946]
[1723530511595,32.67501756,145.07,145.04,7.14558]
[1723530511904,32.67501756,145.07,145.06,6.8936]
[1723530512130,32.67501756,145.07,145.06,7.01909]
[1723530512131,12.81,145.07,145.06,7.01909]
[1723530512304,12.81,145.07,145.06,17.35969]
[1723530512543,12.81,145.07,145.06,0.12549]
[1723530513118,12.81,145.07,145.06,7.01909]
[1723530513679,12.81,145.07,145.06,7.14458]
[1723530513881,22.33998984,145.14,145.1,6.8917]
[1723530514113,15.3954,145.15,145.11,0.12549]
[1723530514296,6.8913,145.12,145.07,7.01859]
[1723530514491,12.81,145.1,145.08,0.25098]
[1723530514806,12.81,145.1,145.08,0.12549]
[1723530515013,12.81,145.1,145.06,0.12549]
[1723530515014,1.65626005,145.09,145.06,0.12549]
[1723530515182,12.81,145.07,145.06,0.25098]
[1723530515909,31.99,145.1,145.07,6.8931]
[1723530516092,31.99,145.1,145.08,0.12549]
[1723530516288,31.99,145.1,145.08,7.14368]
[1723530517204,31.99,145.1,145.08,0.25098]
[1723530517416,31.99,145.12,145.09,7.01769]
[1723530517622,31.99,145.12,145.1,0.12549]
[1723530518011,31.99,145.14,145.11,6.8913]
[1723530519221,31.99,145.14,145.1,7.01719]
[1723530520298,31.99,145.14,145.11,6.8913]
[1723530520508,31.99,145.14,145.12,0.12549]
[1723530520818,33.64626005,145.14,145.12,0.12549]
[1723530521137,31.99,145.14,145.12,0.12549]
[1723530521622,31.99,145.14,145.11,0.25098]
[1723530523934,38.8799,145.14,145.09,24.1216]
[1723530524121,31.99,145.14,145.1,6.8913]
[1723530524299,1.65626005,145.13,145.09,24.1216]
[1723530524508,38.8803,145.14,145.09,24.1216]
[1723530524509,31.99,145.12,145.09,24.1216]
[1723530524727,38.8809,145.12,145.07,6.8932]
[1723530524914,31.99,145.1,145.05,33.2776]
[1723530525647,31.99,145.1,145.05,17.2349]
[1723530525803,31.99,145.1,145.06,6.8936]
[1723530526327,31.99,145.1,145.07,7.14408]
[1723530527305,31.99,145.1,145.08,6.8927]
[1723530527665,31.99,145.1,145.07,0.25098]
[1723530527666,31.99,145.1,145.09,0.12549]
[1723530527935,31.99,145.1,145.07,24.37638]
[1723530529143,31.99,145.1,145.07,17.48328]
[1723530529443,31.99,145.1,145.07,24.37628]
[1723530529606,31.99,145.1,145.08,0.12549]
[1723530529807,31.99,145.12,145.1,17.2294]
[1723530530042,31.99,145.12,145.1,24.1211]
[1723530530204,31.99,145.12,145.11,0.12549]
[1723530533943,31.99,145.14,145.11,0.12549]
[1723530537638,31.99,145.14,145.11,7.01659]
[1723530537838,12.78,145.14,145.11,7.01659]
[1723530539668,12.78,145.14,145.12,6.8906]
[1723530539954,12.78,145.15,145.13,0.12549]
[1723530543069,12.78,145.16,145.13,0.50196]
[1723530543258,12.78,145.16,145.15,0.12549]
[1723530543446,12.78,145.16,145.15,0.25098]
[1723530543677,12.78,145.16,145.15,0.37647]
[1723530543973,12.78,145.16,145.15,7.26587]
[1723530546163,12.78,145.16,145.15,0.37647]
[1723530546969,12.78,145.16,145.15,7.26587]
[1723530547272,12.78,145.16,145.15,7.39136]
[1723530548941,15.1242,145.22,145.17,0.12549]
[1723530549149,12.78,145.18,145.17,0.25098]
[1723530550070,12.78,145.18,145.17,7.13938]
[1723530550249,12.78,145.2,145.18,6.8878]
[1723530550446,12.78,145.2,145.19,7.01299]
[1723530550755,12.78,145.2,145.19,7.13848]
[1723530552263,6.8852,145.24,145.19,7.13848]
[1723530552463,12.78,145.21,145.19,7.13848]
[1723530552868,12.78,145.21,145.2,0.12549]
[1723530553174,15.8729,145.26,145.22,6.8857]
[1723530553378,19.6651,145.24,145.23,0.12549]
[1723530553551,1.65626005,145.24,145.17,45.12549]
[1723530553751,12.78,145.19,145.18,0.50196]
[1723530554772,12.78,145.19,145.18,0.37647]
[1723530555247,12.78,145.19,145.18,7.26447]
[1723530556468,12.78,145.19,145.16,17.2216]
[1723530556673,12.78,145.17,145.16,17.2216]
[1723530556969,68.3324,145.25,145.17,6.8881]
[1723530556970,12.78,145.19,145.17,6.8881]
[1723530557169,12.78,145.21,145.16,17.2216]
[1723530557345,12.78,145.21,145.19,6.8871]
[1723530557873,12.78,145.21,145.2,0.12549]
[1723530558455,12.78,145.21,145.2,7.13798]
[1723530558972,12.78,145.21,145.2,7.26347]
[1723530559162,12.78,145.23,145.2,7.26347]
[1723530559563,15.8729,145.26,145.22,7.01159]
[1723530559778,12.78,145.24,145.23,0.12549]
[1723530560978,12.78,145.24,145.23,7.01109]
[1723530561190,12.78,145.24,145.23,7.26207]
[1723530561379,12.78,145.25,145.23,7.26207]
[1723530561749,0.8215728,145.29,145.25,6.8845]
[1723530561954,0.8215728,145.29,145.24,0.12549]
[1723530561955,0.8215728,145.29,145.27,6.8836]
[1723530562149,0.8215728,145.29,145.28,7.00869]
[1723530562370,0.8215728,145.29,145.28,52.38516]
[1723530562756,0.8215728,145.29,145.28,7.38516]
[1723530562959,0.8215728,145.29,145.28,7.25967]
[1723530564280,0.8215728,145.29,145.28,52.25967]
[1723530564467,0.8215728,145.29,145.28,52.38516]
[1723530568963,0.8215728,145.29,145.28,6.8832]
[1723530570340,0.8215728,145.29,145.28,7.00869]
[1723530570689,0.8215728,145.29,145.28,7.25967]
[1723530570883,0.8215728,145.29,145.28,52.38516]
[1723530574304,0.8215728,145.29,145.28,6.8832]
[1723530575601,0.8215728,145.29,145.28,7.00869]
[1723530576797,0.8215728,145.29,145.26,24.0941]
[1723530576998,31.9,145.28,145.23,17.2135]
[1723530577196,6.8847,145.25,145.2,17.2173]
[1723530577507,31.9,145.24,145.2,17.2173]
[1723530577718,31.9,145.24,145.22,6.886]
[1723530577887,31.9,145.24,145.21,6.8864]
[1723530579224,31.9,145.24,145.22,6.8861]
[1723530579706,31.9,145.24,145.21,7.01189]
[1723530580689,1.65626005,145.23,145.21,7.01189]
[1723530581917,33.55626005,145.22,145.2,17.2173]
[1723530582120,31.9,145.22,145.2,24.1043]
[1723530584593,31.9,145.22,145.21,6.8865]
[1723530584916,31.9,145.24,145.22,6.8859]
[1723530585830,31.9,145.24,145.21,0.12549]
[1723530585831,31.9,145.24,145.21,7.01199]
[1723530586403,31.9,145.24,145.21,0.12549]
[1723530586607,31.9,145.24,145.2,24.1042]
[1723530586608,38.7851,145.24,145.2,24.1042]
[1723530587006,1.65626005,145.23,145.2,24.1042]
[1723530587244,31.9,145.22,145.2,24.1042]
[1723530588051,1.65626005,145.21,145.17,17.2207]
[1723530588336,31.9,145.22,145.19,6.8875]
[1723530588636,31.9,145.22,145.2,6.8869]
[1723530589145,15.5541,145.23,145.21,6.8865]
[1723530589350,15.5541,145.23,145.2,6.8869]
[1723530589645,31.9,145.22,145.19,24.1054]
[1723530590432,1.65626005,145.21,145.19,24.1054]
[1723530590737,31.9,145.22,145.19,24.1054]
[1723530591473,1.65626005,145.21,145.19,24.1054]
[1723530591811,31.9,145.22,145.19,24.1054]
[1723530592103,1.65626005,145.21,145.2,6.887]
[1723530592922,1.65626005,145.21,145.16,17.222]
[1723530593220,15.5541,145.23,145.17,6.8883]
[1723530593221,33.55626005,145.2,145.17,6.8883]
[1723530593436,33.55626005,145.2,145.16,17.222]
[1723530593816,33.55626005,145.2,145.16,24.1105]
[1723530594158,12.78,145.17,145.15,6.8893]
[1723530594324,1.65626005,145.16,145.15,6.8893]
[1723530594838,12.78,145.17,145.14,6.8897]
[1723530595028,12.78,145.15,145.14,6.8897]
[1723530595843,6.8867,145.21,145.16,6.8887]
[1723530596028,31.95,145.18,145.16,6.8887]
[1723530597334,31.95,145.18,145.14,0.25098]
[1723530597538,31.95,145.18,145.15,7.01479]
[1723530597862,31.95,145.18,145.15,0.12549]
[1723530598238,31.95,145.18,145.15,7.01449]
[1723530598632,31.95,145.18,145.15,24.23689]
[1723530599059,1.65626005,145.17,145.15,0.12549]
[1723530599349,31.95,145.18,145.15,0.12549]
[1723530599538,31.95,145.18,145.14,0.12549]
[1723530600030,38.8382,145.18,145.14,0.12549]
[1723530600356,1.65626005,145.17,145.14,0.12549]
[1723530600663,31.95,145.16,145.13,0.12549]
[1723530600828,1.65626005,145.15,145.13,0.12549]
[1723530601032,33.60626005,145.14,145.12,17.227]
[1723530601230,33.60626005,145.14,145.09,6.8919]
[1723530601231,40.49616005,145.14,145.09,6.8919]
[1723530601548,15.6737,145.17,145.09,17.2301]
[1723530601549,31.95,145.12,145.09,17.2301]
[1723530601840,31.95,145.12,145.1,6.8917]
[1723530602937,15.6737,145.17,145.15,6.8893]
[1723530603343,31.95,145.18,145.14,17.2239]
[1723530603966,31.95,145.18,145.15,6.8893]
[1723530605159,31.95,145.18,145.14,24.1137]
[1723530606661,31.95,145.16,145.12,6.8907]
[1723530606868,31.95,145.16,145.13,6.8902]
[1723530607230,31.95,145.16,145.12,6.8904]
[1723530607458,31.95,145.16,145.13,6.8902]
[1723530608466,31.95,145.16,145.14,17.2247]
[1723530609045,31.95,145.16,145.14,24.1145]
[1723530611353,31.95,145.16,145.15,7.01489]
[1723530611852,31.95,145.18,145.15,7.01489]
[1723530612261,31.95,145.2,145.16,17.2213]
[1723530613149,31.95,145.2,145.16,24.1098]
[1723530613554,31.95,145.2,145.17,6.8884]
[1723530613954,1.63252571,179.89,145.23,6.8852]
[1723530613955,10.64780342,145.26,145.23,6.8852]
[1723530614163,31.95,145.27,145.24,17.2119]
[1723530616667,31.95,145.27,145.25,7.01009]
[1723530616991,32.7715728,145.29,145.27,6.8836]
[1723530617281,39.6542728,145.29,145.25,0.12549]
[1723530617456,31.95,145.27,145.25,7.01009]
[1723530617655,32.7715728,145.29,145.25,0.12549]
[1723530617862,32.7715728,145.29,145.27,6.8837]
[1723530618060,0.8215728,145.29,145.28,6.8832]
[1723530618248,0.8215728,145.29,145.28,7.13418]
[1723530619068,0.8215728,145.29,145.28,0.12549]
[1723530619277,0.8215728,145.29,145.28,7.00869]
[1723530619798,0.8215728,145.29,145.28,7.13418]
[1723530620194,0.8215728,145.29,145.28,7.38516]
[1723530621574,0.8215728,145.29,145.28,52.38516]
[1723530623573,0.8215728,145.29,145.28,53.76128145]
[1723530623997,0.8215728,145.29,145.28,89.34628145]
[1723530624513,31.95,145.39,145.29,6.28539]
[1723530624790,31.95,145.39,145.37,6.8785]
[1723530625160,6.8771,145.41,145.36,24.20339]
[1723530625356,31.95,145.4,145.38,6.8785]
[1723530625556,31.95,145.42,145.39,0.12549]
[1723530626055,31.95,145.42,145.39,17.32039]
[1723530626458,31.95,145.42,145.39,24.19829]
[1723530626649,31.95,145.42,145.39,17.32039]
[1723530627272,31.95,145.4,145.39,0.12549]
[1723530627465,33.60626005,145.4,145.37,6.8789]
[1723530627666,31.95,145.4,145.38,0.12549]
[1723530628579,6.8784,145.39,145.33,24.0828]
[1723530628766,31.95,145.36,145.33,24.0828]
[1723530629360,31.95,145.39,145.31,6.8815]
[1723530629580,31.95,145.32,145.23,21.5024]
[1723530630172,31.95,145.32,145.31,6.8818]
[1723530630419,31.95,145.34,145.3,6.8822]
[1723530630581,31.95,145.32,145.23,21.5024]
[1723530630887,31.95,145.3,145.28,6.8832]
[1723530631470,31.95,145.3,145.29,6.8827]
[1723530631670,31.95,145.32,145.23,21.5024]
[1723530632275,23.1219,145.36,145.24,45.50196]
[1723530632276,31.95,145.34,145.24,45.50196]
[1723530632700,31.95,145.34,145.26,0.12549]
[1723530632997,31.95,145.34,145.26,45.50196]
[1723530633570,31.95,145.34,145.28,0.12549]
[1723530633874,31.95,145.34,145.28,1.87820943]
[1723530634067,31.95,145.34,145.33,6.8808]
[1723530634279,48.1922,145.36,145.34,6.8801]
[1723530634470,48.1922,145.36,145.33,0.12549]
[1723530634471,31.95,145.36,145.33,7.00629]
[1723530634671,31.95,145.36,145.34,7.00589]
[1723530634970,31.95,145.36,145.34,0.12549]
[1723530635373,1.65626005,145.35,145.33,0.12549]
[1723530635676,6.8791,145.37,145.33,0.12549]
[1723530635677,31.95,145.34,145.33,0.12549]
[1723530636193,31.95,145.34,145.33,7.00629]
[1723530636381,31.95,145.34,145.33,7.13178]
[1723530637177,31.95,145.39,145.33,7.13178]
[1723530637178,31.95,145.36,145.34,6.8801]
[1723530637382,31.95,145.36,145.35,0.12549]
[1723530638308,31.95,145.36,145.34,0.12549]
[1723530638909,31.95,145.36,145.34,7.00579]
[1723530639081,31.95,145.36,145.35,6.8799]
[1723530639283,31.95,145.36,145.35,0.12549]
[1723530640006,15.1706,145.4,145.35,0.12549]
[1723530640303,31.95,145.39,145.36,7.00449]
[1723530640479,38.8281,145.39,145.34,17.2]
[1723530640678,31.95,145.37,145.34,17.2]
[1723530640894,31.95,145.37,145.35,0.12549]
[1723530641481,1.65626005,145.36,145.35,0.12549]
[1723530642104,31.95,145.37,145.35,0.12549]
[1723530644693,31.95,145.37,145.36,6.8794]
[1723530644896,31.95,145.39,145.37,6.8788]
[1723530645390,31.95,145.39,145.36,17.32339]
[1723530645585,31.95,145.39,145.37,7.00399]
[1723530646390,31.95,145.39,145.38,6.8785]
[1723530646577,31.95,145.41,145.38,7.00399]
[1723530646780,31.95,145.41,145.39,0.12549]
[1723530647884,31.95,145.41,145.39,7.00339]
[1723530649293,49.2675728,145.43,145.4,6.8775]
[1723530649520,20.0,145.42,145.41,0.12549]
[1723530650799,20.0,145.42,145.4,0.12549]
[1723530651112,0.8215728,145.43,145.4,17.44418]
[1723530651289,0.8215728,145.43,145.41,0.25098]
[1723530651487,0.8215728,145.43,145.42,7.12758]
[1723530651792,0.8215728,145.43,145.42,7.25307]
[1723530651995,0.8215728,145.43,145.42,7.37856]
[1723530652381,0.8215728,145.43,145.42,52.37856]
[1723530656342,0.8215728,145.43,145.42,7.37856]
[1723530657195,0.8215728,145.43,145.42,52.37856]
[1723530658846,0.8215728,145.43,145.42,53.75346979]
[1723530659498,0.8215728,145.43,145.42,52.37856]
[1723530661914,0.8215728,145.43,145.42,7.37856]
[1723530663223,0.8215728,145.43,145.42,52.37856]
[1723530664536,0.8215728,145.43,145.42,53.75332679]
[1723530664855,0.8215728,145.43,145.42,73.75332679]
[1723530665554,7.28e-05,145.43,145.42,89.95832679]
[1723530665720,31.95,145.52,145.51,6.8723]
[1723530666049,16.2797,145.53,145.51,6.99779]
[1723530666246,16.2797,145.53,145.52,0.12549]
[1723530666823,31.95,145.54,145.52,6.99739]
[1723530667145,31.95,145.54,145.53,6.8714]
[1723530667327,31.95,145.54,145.53,6.99689]
[1723530667517,31.95,145.54,145.53,0.12549]
[1723530667927,31.95,145.54,145.5,24.0547]
[1723530668264,15.5462,145.57,145.52,17.30459]
[1723530668560,31.95,145.56,145.53,0.25098]
[1723530668872,31.95,145.54,145.53,0.12549]
[1723530669157,31.95,145.54,145.51,6.99769]
[1723530669158,6.8719,145.52,145.47,6.8738]
[1723530669448,31.95,145.48,145.43,17.1898]
[1723530670323,31.95,145.48,145.46,6.8746]
[1723530670848,31.95,145.48,145.47,6.8742]
[1723530671051,48.0101,145.5,145.48,6.8737]
[1723530671548,48.0101,145.5,145.49,0.12549]
[1723530671720,68.0101,145.5,145.49,0.12549]
[1723530672054,48.0101,145.5,145.49,0.12549]
[1723530672960,48.0101,145.5,145.48,0.12549]
[1723530673762,54.8829,145.5,145.48,0.12549]
[1723530673945,54.8829,145.5,145.47,0.12549]
[1723530674144,31.95,145.48,145.47,0.12549]
[1723530675046,48.0101,145.5,145.47,6.99969]
[1723530675253,48.0101,145.5,145.48,6.99919]
[1723530675478,48.0101,145.5,145.49,0.12549]
[1723530675649,31.95,145.5,145.49,6.99879]
[1723530675849,31.95,145.5,145.49,0.25098]
[1723530676051,31.95,145.5,145.46,24.0606]
[1723530676280,31.95,145.5,145.45,0.12549]
[1723530676569,31.95,145.48,145.43,17.1898]
[1723530676870,38.8238,145.48,145.44,6.8753]
[1723530677051,31.95,145.48,145.44,6.8753]
[1723530677870,31.95,145.48,145.43,17.1898]
[1723530678080,31.95,145.48,145.46,6.8745]
[1723530678284,31.95,145.48,145.47,0.12549]
[1723530678461,31.95,145.48,145.46,0.12549]
[1723530678778,31.95,145.48,145.45,0.12549]
[1723530679072,31.95,145.48,145.46,6.8743]
[1723530679246,31.95,145.48,145.47,6.99969]
[1723530680164,31.95,145.48,145.47,0.12549]
[1723530681457,31.95,145.48,145.47,6.99969]
[1723530681663,31.95,145.5,145.47,7.12518]
[1723530681952,31.95,145.5,145.49,6.8733]
[1723530682167,31.95,145.5,145.49,6.99879]
[1723530682582,31.95,145.52,145.49,6.99879]
[1723530682877,20.0,145.51,145.5,0.12549]
[1723530683786,31.95,145.52,145.49,0.25098]
[1723530684077,15.284,145.53,145.5,6.99829]
[1723530684272,31.95,145.52,145.49,7.12418]
[1723530684456,31.95,145.52,145.49,0.25098]
[1723530685376,31.95,145.52,145.49,24.30688]
[1723530685751,31.95,145.52,145.49,17.43368]
[1723530686255,31.95,145.52,145.49,24.30698]
[1723530686459,31.95,145.54,145.49,17.43368]
[1723530686656,31.95,145.54,145.5,1.62538755]
[1723530686974,31.95,145.54,145.51,0.25098]
[1723530687788,31.95,145.54,145.52,6.8715]
[1723530688078,31.95,145.56,145.53,6.99679]
[1723530688286,31.95,145.56,145.53,0.12549]
[1723530688577,6.8723,145.52,145.47,6.8739]
[1723530688786,31.95,145.5,145.48,24.18299]
[1723530689466,31.95,145.52,145.5,6.8728]
[1723530689675,31.95,145.52,145.51,0.12549]
[1723530690149,31.95,145.52,145.48,17.1838]
[1723530690356,31.95,145.52,145.49,6.99869]
[1723530690889,31.95,145.5,145.49,0.12549]
[1723530691071,31.95,145.5,145.48,0.12549]
[1723530692261,55.0056,145.5,145.45,17.1874]
[1723530692461,31.95,145.48,145.45,24.0625]
[1723530693095,23.0556,145.5,145.42,6.4206]
[1723530693096,31.95,145.46,145.42,6.8762]
[1723530693392,31.95,145.46,145.43,6.876]
[1723530693923,31.95,145.46,145.45,6.8752]
[1723530694485,31.95,145.46,145.45,7.00069]
[1723530695079,31.95,145.48,145.46,6.8745]
[1723530695386,31.95,145.48,145.47,0.12549]
[1723530695855,48.1327,145.5,145.46,17.43698]
[1723530696271,48.1327,145.5,145.47,6.8742]
[1723530696494,48.1327,145.5,145.48,0.12549]
[1723530697478,48.1327,145.5,145.47,0.12549]
[1723530697479,55.0057,145.5,145.47,0.12549]
[1723530697705,38.8237,145.48,145.47,0.12549]
[1723530697905,38.8237,145.48,145.44,6.8755]
[1723530698076,31.95,145.46,145.45,0.12549]
[1723530698603,31.95,145.46,145.4,17.1934]